[Event "Titled Tuesday Blitz April 11 Early 2023"]
[White "Kravtsiv, Martyn"]
[Black "Sarana, Alexey"]
[WhiteFideId "14113147"]
[BlackFideId "24133795"]
[WhiteElo "2695"]
[BlackElo "2714"]
[Result "0-1"]
[Round "09"]
[TimeControl "180+2"]
[Date "2023.04.11"]
[WhiteClock "0:00:01"]
[BlackClock "0:00:46"]

1. e4 {[%clk 0:03:00]}  c5 {[%clk 0:03:00]} 2. Nf3 {[%clk 0:03:01]}  d6 {[%clk 0:03:00]} 3. Bb5+ {[%clk 0:03:01]}  Nd7 {[%clk 0:03:01]} 4. d4 {[%clk 0:03:00]}  cxd4 {[%clk 0:03:02]} 5. Qxd4 {[%clk 0:03:00]}  a6 {[%clk 0:03:02]} 6. Bxd7+ {[%clk 0:02:59]}  Bxd7 {[%clk 0:03:03]} 7. O-O {[%clk 0:02:59]}  e5 {[%clk 0:03:02]} 8. Qd3 {[%clk 0:02:58]}  h6 {[%clk 0:03:03]} 9. c4 {[%clk 0:02:56]}  b5 {[%clk 0:03:01]} 10. Na3 {[%clk 0:02:54]}  Qb6 {[%clk 0:02:58]} 11. Be3 {[%clk 0:02:24]}  Qb7 {[%clk 0:02:58]} 12. cxb5 {[%clk 0:02:24]}  axb5 {[%clk 0:02:57]} 13. Nc2 {[%clk 0:02:14]}  Nf6 {[%clk 0:02:56]} 14. Nd2 {[%clk 0:02:14]}  Be7 {[%clk 0:02:53]} 15. Nb4 {[%clk 0:02:13]}  O-O {[%clk 0:02:52]} 16. f3 {[%clk 0:02:08]}  Rfc8 {[%clk 0:02:51]} 17. Rac1 {[%clk 0:02:07]}  Be6 {[%clk 0:02:50]} 18. Nb3 {[%clk 0:02:02]}  Bc4 {[%clk 0:02:48]} 19. Qd2 {[%clk 0:01:55]}  Bxf1 {[%clk 0:02:48]} 20. Rxf1 {[%clk 0:01:55]}  d5 {[%clk 0:02:40]} 21. Nxd5 {[%clk 0:01:54]}  Nxd5 {[%clk 0:02:38]} 22. exd5 {[%clk 0:01:55]}  Rd8 {[%clk 0:02:37]} 23. Rd1 {[%clk 0:01:49]}  Rxa2 {[%clk 0:02:37]} 24. Nc5 {[%clk 0:01:45]}  Qa8 {[%clk 0:02:04]} 25. Ne4 {[%clk 0:01:43]}  Ra1 {[%clk 0:02:03]} 26. Rxa1 {[%clk 0:01:22]}  Qxa1+ {[%clk 0:02:04]} 27. Kf2 {[%clk 0:01:21]}  Qa8 {[%clk 0:02:04]} 28. d6 {[%clk 0:01:20]}  Bxd6 {[%clk 0:02:03]} 29. Qd3 {[%clk 0:00:30]}  Bc5 {[%clk 0:01:49]} 30. Qxb5 {[%clk 0:00:29]}  Bxe3+ {[%clk 0:01:49]} 31. Kxe3 {[%clk 0:00:30]}  Qa7+ {[%clk 0:01:44]} 32. Qc5 {[%clk 0:00:30]}  Qa1 {[%clk 0:01:35]} 33. Qxe5 {[%clk 0:00:26]}  Qg1+ {[%clk 0:01:30]} 34. Kf4 {[%clk 0:00:25]}  Qxg2 {[%clk 0:01:26]} 35. Qe7 {[%clk 0:00:18]}  Qxh2+ {[%clk 0:01:24]} 36. Ke3 {[%clk 0:00:17]}  Rb8 {[%clk 0:01:18]} 37. b4 {[%clk 0:00:17]}  Qg1+ {[%clk 0:01:17]} 38. Ke2 {[%clk 0:00:14]}  Qd4 {[%clk 0:01:14]} 39. Nd6 {[%clk 0:00:13]}  Qf6 {[%clk 0:00:58]} 40. Qc7 {[%clk 0:00:10]}  Rxb4 {[%clk 0:00:53]} 41. Qc6 {[%clk 0:00:07]}  Rb2+ {[%clk 0:00:51]} 42. Kd3 {[%clk 0:00:07]}  Qe6 {[%clk 0:00:51]} 43. Qa8+ {[%clk 0:00:03]}  Kh7 {[%clk 0:00:50]} 44. Ne4 {[%clk 0:00:03]}  Qb3+ {[%clk 0:00:49]} 45. Kd4 {[%clk 0:00:03]}  Qb6+ {[%clk 0:00:49]} 46. Ke5 {[%clk 0:00:02]}  Rb5+ {[%clk 0:00:47]} 47. Kf4 {[%clk 0:00:02]}  Qc7+ {[%clk 0:00:46]} 48. Ke3 {[%clk 0:00:01]}  Rb3+ {[%clk 0:00:46]} 49. Kf2 {[%clk 0:00:01]}  Qh2+ {[%clk 0:00:46]} 0-1


[Site "https://www.chess.com"]

[Event "Titled Tuesday Blitz April 11 Early 2023"]
[White "Drygalov, Andrey"]
[Black "Le, Tuan Minh"]
[WhiteFideId "24171735"]
[BlackFideId "12401153"]
[WhiteElo "2466"]
[BlackElo "2566"]
[Result "1-0"]
[Round "09"]
[TimeControl "180+2"]
[Date "2023.04.11"]
[WhiteClock "0:00:04"]
[BlackClock "0:00:02"]

1. e4 {[%clk 0:03:00]}  c5 {[%clk 0:02:58]} 2. Nf3 {[%clk 0:03:01]}  Nf6 {[%clk 0:02:55]} 3. e5 {[%clk 0:03:01]}  Nd5 {[%clk 0:02:55]} 4. Nc3 {[%clk 0:03:01]}  Nxc3 {[%clk 0:02:56]} 5. dxc3 {[%clk 0:03:01]}  Nc6 {[%clk 0:02:56]} 6. Bf4 {[%clk 0:03:02]}  e6 {[%clk 0:02:53]} 7. Qd2 {[%clk 0:03:02]}  h6 {[%clk 0:02:53]} 8. h4 {[%clk 0:03:01]}  Qc7 {[%clk 0:02:53]} 9. O-O-O {[%clk 0:03:00]}  b6 {[%clk 0:02:54]} 10. Kb1 {[%clk 0:02:53]}  Bb7 {[%clk 0:02:53]} 11. Bd3 {[%clk 0:02:46]}  O-O-O {[%clk 0:02:53]} 12. Be4 {[%clk 0:02:41]}  Be7 {[%clk 0:02:45]} 13. h5 {[%clk 0:02:37]}  Kb8 {[%clk 0:02:35]} 14. Rh3 {[%clk 0:02:36]}  Ka8 {[%clk 0:02:30]} 15. Rg3 {[%clk 0:02:35]}  Bf8 {[%clk 0:02:30]} 16. c4 {[%clk 0:02:30]}  Ne7 {[%clk 0:02:29]} 17. Bxb7+ {[%clk 0:02:26]}  Qxb7 {[%clk 0:02:30]} 18. Nh4 {[%clk 0:02:19]}  Nc8 {[%clk 0:02:24]} 19. Rd3 {[%clk 0:02:18]}  Be7 {[%clk 0:02:19]} 20. Nf3 {[%clk 0:02:12]}  Kb8 {[%clk 0:02:15]} 21. b3 {[%clk 0:02:02]}  Qe4 {[%clk 0:01:55]} 22. Qe3 {[%clk 0:01:24]}  Qxe3 {[%clk 0:01:38]} 23. Rxe3 {[%clk 0:01:17]}  g6 {[%clk 0:01:25]} 24. Nd2 {[%clk 0:01:11]}  gxh5 {[%clk 0:01:23]} 25. Ne4 {[%clk 0:01:08]}  Kc7 {[%clk 0:01:20]} 26. Rh1 {[%clk 0:01:01]}  h4 {[%clk 0:01:20]} 27. Nf6 {[%clk 0:00:58]}  Kc6 {[%clk 0:01:12]} 28. Rxh4 {[%clk 0:00:57]}  d5 {[%clk 0:01:07]} 29. cxd5+ {[%clk 0:00:53]}  exd5 {[%clk 0:01:08]} 30. Rxh6 {[%clk 0:00:52]}  Rxh6 {[%clk 0:01:07]} 31. Bxh6 {[%clk 0:00:53]}  Bxf6 {[%clk 0:00:55]} 32. exf6 {[%clk 0:00:53]}  Rh8 {[%clk 0:00:56]} 33. Rh3 {[%clk 0:00:47]}  Kd7 {[%clk 0:00:51]} 34. g4 {[%clk 0:00:24]}  Nd6 {[%clk 0:00:50]} 35. f3 {[%clk 0:00:16]}  Ke6 {[%clk 0:00:48]} 36. Rh5 {[%clk 0:00:16]}  Ne8 {[%clk 0:00:37]} 37. g5 {[%clk 0:00:14]}  Kf5 {[%clk 0:00:29]} 38. Rh1 {[%clk 0:00:14]}  Kg6 {[%clk 0:00:30]} 39. Re1 {[%clk 0:00:11]}  Nxf6 {[%clk 0:00:19]} 40. Re7 {[%clk 0:00:11]}  d4 {[%clk 0:00:09]} 41. Rxa7 {[%clk 0:00:08]}  Nd5 {[%clk 0:00:08]} 42. Rd7 {[%clk 0:00:08]}  Nc3+ {[%clk 0:00:05]} 43. Kb2 {[%clk 0:00:08]}  Re8 {[%clk 0:00:06]} 44. Rd6+ {[%clk 0:00:07]}  Kh5 {[%clk 0:00:06]} 45. Rxb6 {[%clk 0:00:05]}  Re1 {[%clk 0:00:06]} 46. Rf6 {[%clk 0:00:04]}  Rb1+ {[%clk 0:00:05]} 47. Ka3 {[%clk 0:00:05]}  Ra1 {[%clk 0:00:06]} 48. Kb2 {[%clk 0:00:03]}  Rxa2+ {[%clk 0:00:06]} 49. Kc1 {[%clk 0:00:03]}  Ra1+ {[%clk 0:00:06]} 50. Kb2 {[%clk 0:00:04]}  Rb1+ {[%clk 0:00:06]} 51. Ka3 {[%clk 0:00:04]}  Ra1+ {[%clk 0:00:04]} 52. Kb2 {[%clk 0:00:04]}  Ra2+ {[%clk 0:00:05]} 53. Kc1 {[%clk 0:00:04]}  Nd5 {[%clk 0:00:06]} 54. Rf5 {[%clk 0:00:04]}  Ne3 {[%clk 0:00:03]} 55. Rxc5 {[%clk 0:00:04]}  Kh4 {[%clk 0:00:02]} 56. Bg7 {[%clk 0:00:04]}  Ra1+ {[%clk 0:00:01]} 57. Kb2 {[%clk 0:00:04]}  Rd1 {[%clk 0:00:02]} 58. Bf6 {[%clk 0:00:03]}  Kg3 {[%clk 0:00:02]} 59. b4 {[%clk 0:00:04]}  Kxf3 {[%clk 0:00:02]} 60. b5 {[%clk 0:00:04]}  Rd2 {[%clk 0:00:01]} 61. b6 {[%clk 0:00:04]}  Rd3 {[%clk 0:00:02]} 62. cxd3 {[%clk 0:00:04]} 1-0


[Site "https://www.chess.com"]

[Event "Titled Tuesday Blitz April 11 Early 2023"]
[White "Kamsky, Gata"]
[Black "Vidit, Santosh Gujrathi"]
[WhiteFideId "2000024"]
[BlackFideId "5029465"]
[WhiteElo "2660"]
[BlackElo "2651"]
[Result "1/2-1/2"]
[Round "09"]
[TimeControl "180+2"]
[Date "2023.04.11"]
[WhiteClock "0:00:20"]
[BlackClock "0:00:17"]

1. d4 {[%clk 0:03:00]}  Nf6 {[%clk 0:03:00]} 2. Bf4 {[%clk 0:02:59]}  g6 {[%clk 0:02:59]} 3. c3 {[%clk 0:02:58]}  Bg7 {[%clk 0:02:59]} 4. Nf3 {[%clk 0:02:58]}  d6 {[%clk 0:02:59]} 5. h3 {[%clk 0:02:58]}  O-O {[%clk 0:02:49]} 6. Nbd2 {[%clk 0:02:57]}  c5 {[%clk 0:02:48]} 7. dxc5 {[%clk 0:02:57]}  dxc5 {[%clk 0:02:48]} 8. e4 {[%clk 0:02:58]}  Nc6 {[%clk 0:02:48]} 9. Be2 {[%clk 0:02:57]}  Be6 {[%clk 0:02:30]} 10. O-O {[%clk 0:02:55]}  h6 {[%clk 0:02:28]} 11. Re1 {[%clk 0:02:49]}  a6 {[%clk 0:02:25]} 12. a4 {[%clk 0:02:47]}  Na5 {[%clk 0:02:21]} 13. Ne5 {[%clk 0:02:33]}  Rc8 {[%clk 0:02:18]} 14. Ndc4 {[%clk 0:02:27]}  Qxd1 {[%clk 0:01:48]} 15. Raxd1 {[%clk 0:02:24]}  Nxc4 {[%clk 0:01:19]} 16. Bxc4 {[%clk 0:02:22]}  Bxc4 {[%clk 0:01:17]} 17. Nxc4 {[%clk 0:02:22]}  b5 {[%clk 0:01:18]} 18. Nb6 {[%clk 0:02:20]}  Rc6 {[%clk 0:01:17]} 19. a5 {[%clk 0:02:17]}  g5 {[%clk 0:01:01]} 20. Bh2 {[%clk 0:02:09]}  Re8 {[%clk 0:00:56]} 21. e5 {[%clk 0:02:07]}  Nh5 {[%clk 0:00:56]} 22. g4 {[%clk 0:02:01]}  Nf4 {[%clk 0:00:56]} 23. Bxf4 {[%clk 0:02:01]}  gxf4 {[%clk 0:00:57]} 24. Kg2 {[%clk 0:02:01]}  Re6 {[%clk 0:00:55]} 25. Nd7 {[%clk 0:01:56]}  Rc8 {[%clk 0:00:52]} 26. Rd5 {[%clk 0:01:55]}  c4 {[%clk 0:00:50]} 27. Kf3 {[%clk 0:01:53]}  f6 {[%clk 0:00:44]} 28. Nb6 {[%clk 0:01:21]}  Rcc6 {[%clk 0:00:28]} 29. Kxf4 {[%clk 0:01:15]}  fxe5+ {[%clk 0:00:28]} 30. Kf3 {[%clk 0:01:15]}  Rcd6 {[%clk 0:00:26]} 31. Red1 {[%clk 0:01:05]}  e4+ {[%clk 0:00:25]} 32. Ke3 {[%clk 0:01:01]}  Be5 {[%clk 0:00:22]} 33. Nd7 {[%clk 0:00:45]}  Rxd5 {[%clk 0:00:18]} 34. Rxd5 {[%clk 0:00:45]}  Bd6 {[%clk 0:00:18]} 35. Nc5 {[%clk 0:00:45]}  Bxc5+ {[%clk 0:00:17]} 36. Rxc5 {[%clk 0:00:45]}  Kf7 {[%clk 0:00:15]} 37. Rf5+ {[%clk 0:00:43]}  Ke8 {[%clk 0:00:16]} 38. Rf4 {[%clk 0:00:43]}  Rd6 {[%clk 0:00:16]} 39. Ke2 {[%clk 0:00:40]}  Rd3 {[%clk 0:00:15]} 40. h4 {[%clk 0:00:40]}  Rh3 {[%clk 0:00:14]} 41. h5 {[%clk 0:00:39]}  b4 {[%clk 0:00:12]} 42. Kd2 {[%clk 0:00:37]}  bxc3+ {[%clk 0:00:11]} 43. bxc3 {[%clk 0:00:37]}  Rd3+ {[%clk 0:00:12]} 44. Kc2 {[%clk 0:00:38]}  e3 {[%clk 0:00:12]} 45. fxe3 {[%clk 0:00:35]}  Rxe3 {[%clk 0:00:13]} 46. Rxc4 {[%clk 0:00:35]}  Kd7 {[%clk 0:00:14]} 47. Rd4+ {[%clk 0:00:29]}  Kc6 {[%clk 0:00:14]} 48. Rd8 {[%clk 0:00:29]}  Rg3 {[%clk 0:00:13]} 49. Rh8 {[%clk 0:00:28]}  Rxg4 {[%clk 0:00:13]} 50. Rxh6+ {[%clk 0:00:28]}  Kb5 {[%clk 0:00:13]} 51. Rg6 {[%clk 0:00:29]}  Rh4 {[%clk 0:00:14]} 52. Rg5+ {[%clk 0:00:27]}  Kc4 {[%clk 0:00:14]} 53. Re5 {[%clk 0:00:26]}  Rh2+ {[%clk 0:00:14]} 54. Kd1 {[%clk 0:00:26]}  Kxc3 {[%clk 0:00:15]} 55. Rxe7 {[%clk 0:00:20]}  Rxh5 {[%clk 0:00:14]} 56. Rc7+ {[%clk 0:00:20]}  Kb2 {[%clk 0:00:12]} 57. Rb7+ {[%clk 0:00:20]}  Kc3 {[%clk 0:00:11]} 58. Rc7+ {[%clk 0:00:19]}  Kb4 {[%clk 0:00:12]} 59. Rb7+ {[%clk 0:00:19]}  Kxa5 {[%clk 0:00:12]} 60. Kc2 {[%clk 0:00:19]}  Ka4 {[%clk 0:00:13]} 61. Re7 {[%clk 0:00:18]}  Rh2+ {[%clk 0:00:13]} 62. Kb1 {[%clk 0:00:17]}  a5 {[%clk 0:00:14]} 63. Re3 {[%clk 0:00:17]}  Kb4 {[%clk 0:00:14]} 64. Re4+ {[%clk 0:00:17]}  Kb3 {[%clk 0:00:15]} 65. Re3+ {[%clk 0:00:17]}  Kc4 {[%clk 0:00:15]} 66. Re4+ {[%clk 0:00:17]}  Kd3 {[%clk 0:00:16]} 67. Ra4 {[%clk 0:00:17]}  Rh5 {[%clk 0:00:16]} 68. Kb2 {[%clk 0:00:18]}  Rb5+ {[%clk 0:00:16]} 69. Ka2 {[%clk 0:00:18]}  Kc3 {[%clk 0:00:17]} 70. Re4 {[%clk 0:00:18]}  Rd5 {[%clk 0:00:17]} 71. Rg4 {[%clk 0:00:18]}  Rd1 {[%clk 0:00:17]} 72. Rg3+ {[%clk 0:00:18]}  Kb4 {[%clk 0:00:17]} 73. Rg4+ {[%clk 0:00:18]}  Kc5 {[%clk 0:00:17]} 74. Rg5+ {[%clk 0:00:19]}  Kb4 {[%clk 0:00:18]} 75. Rg4+ {[%clk 0:00:19]}  Kc5 {[%clk 0:00:18]} 76. Rg5+ {[%clk 0:00:20]}  Kb4 {[%clk 0:00:17]} 77. Rg4+ {[%clk 0:00:20]} 1/2-1/2


[Site "https://www.chess.com"]

[Event "Titled Tuesday Blitz April 11 Early 2023"]
[White "Durarbayli, Vasif"]
[Black "Sadhwani, Raunak"]
[WhiteFideId "13402935"]
[BlackFideId "35093487"]
[WhiteElo "2551"]
[BlackElo "2631"]
[Result "1-0"]
[Round "09"]
[TimeControl "180+2"]
[Date "2023.04.11"]
[WhiteClock "0:00:03"]
[BlackClock "0:00:04"]

1. e4 {[%clk 0:03:00]}  g6 {[%clk 0:02:59]} 2. d4 {[%clk 0:03:00]}  Bg7 {[%clk 0:03:00]} 3. Nc3 {[%clk 0:03:01]}  d6 {[%clk 0:03:00]} 4. Be3 {[%clk 0:03:01]}  c6 {[%clk 0:03:01]} 5. g4 {[%clk 0:02:57]}  b5 {[%clk 0:03:00]} 6. a3 {[%clk 0:02:56]}  h5 {[%clk 0:02:58]} 7. g5 {[%clk 0:02:53]}  h4 {[%clk 0:02:58]} 8. Qd2 {[%clk 0:02:37]}  Nd7 {[%clk 0:02:55]} 9. f4 {[%clk 0:02:36]}  Nb6 {[%clk 0:02:46]} 10. Nf3 {[%clk 0:02:35]}  Bg4 {[%clk 0:02:44]} 11. Qf2 {[%clk 0:02:31]}  a5 {[%clk 0:02:38]} 12. Bd3 {[%clk 0:02:14]}  b4 {[%clk 0:02:38]} 13. Ne2 {[%clk 0:02:12]}  Na4 {[%clk 0:02:13]} 14. Bc1 {[%clk 0:02:00]}  e6 {[%clk 0:02:04]} 15. b3 {[%clk 0:01:54]}  Nc3 {[%clk 0:02:00]} 16. Nxc3 {[%clk 0:01:42]}  Bxf3 {[%clk 0:01:57]} 17. Qxf3 {[%clk 0:01:21]}  Bxd4 {[%clk 0:01:57]} 18. Bd2 {[%clk 0:01:15]}  bxc3 {[%clk 0:01:54]} 19. Be3 {[%clk 0:01:15]}  Qb6 {[%clk 0:01:55]} 20. Bxd4 {[%clk 0:01:10]}  Qxd4 {[%clk 0:01:56]} 21. f5 {[%clk 0:01:07]}  Ne7 {[%clk 0:01:46]} 22. f6 {[%clk 0:00:44]}  Nc8 {[%clk 0:01:44]} 23. Qf4 {[%clk 0:00:34]}  Nb6 {[%clk 0:01:39]} 24. Rd1 {[%clk 0:00:31]}  Qc5 {[%clk 0:01:14]} 25. Be2 {[%clk 0:00:29]}  Rd8 {[%clk 0:01:14]} 26. a4 {[%clk 0:00:27]}  h3 {[%clk 0:01:07]} 27. Rd3 {[%clk 0:00:22]}  d5 {[%clk 0:00:48]} 28. Rf1 {[%clk 0:00:02]}  Kf8 {[%clk 0:00:36]} 29. Rff3 {[%clk 0:00:03]}  e5 {[%clk 0:00:20]} 30. Qxe5 {[%clk 0:00:02]}  Qg1+ {[%clk 0:00:16]} 31. Rf1 {[%clk 0:00:02]}  Qc5 {[%clk 0:00:11]} 32. Rxc3 {[%clk 0:00:02]}  Qb4 {[%clk 0:00:12]} 33. Qe7+ {[%clk 0:00:01]}  Qxe7 {[%clk 0:00:12]} 34. fxe7+ {[%clk 0:00:02]}  Kxe7 {[%clk 0:00:13]} 35. Rxc6 {[%clk 0:00:03]}  Nd7 {[%clk 0:00:10]} 36. exd5 {[%clk 0:00:03]}  Ne5 {[%clk 0:00:11]} 37. Rcf6 {[%clk 0:00:03]}  Rxd5 {[%clk 0:00:09]} 38. Ra6 {[%clk 0:00:03]}  Rc5 {[%clk 0:00:07]} 39. Ra7+ {[%clk 0:00:03]}  Kd8 {[%clk 0:00:07]} 40. Ra8+ {[%clk 0:00:02]}  Rc8 {[%clk 0:00:07]} 41. Rxa5 {[%clk 0:00:02]}  Re8 {[%clk 0:00:07]} 42. Rd5+ {[%clk 0:00:02]}  Kc7 {[%clk 0:00:06]} 43. Kd2 {[%clk 0:00:03]}  Rcd8 {[%clk 0:00:04]} 44. Rxd8 {[%clk 0:00:03]}  Rxd8+ {[%clk 0:00:05]} 45. Kc3 {[%clk 0:00:03]}  Re8 {[%clk 0:00:06]} 46. Bc4 {[%clk 0:00:03]}  Rh8 {[%clk 0:00:05]} 47. Bxf7 {[%clk 0:00:02]}  Rh5 {[%clk 0:00:05]} 48. Be6 {[%clk 0:00:02]}  Rxg5 {[%clk 0:00:06]} 49. Re1 {[%clk 0:00:01]}  Nf3 {[%clk 0:00:05]} 50. Re3 {[%clk 0:00:01]}  Nxh2 {[%clk 0:00:06]} 51. Bxh3 {[%clk 0:00:02]}  Kd6 {[%clk 0:00:05]} 52. Rd3+ {[%clk 0:00:02]}  Ke5 {[%clk 0:00:05]} 53. Kb2 {[%clk 0:00:03]}  Kf4 {[%clk 0:00:06]} 54. Rc3 {[%clk 0:00:03]}  Nf3 {[%clk 0:00:06]} 55. b4 {[%clk 0:00:03]}  Rh5 {[%clk 0:00:04]} 56. Bg2 {[%clk 0:00:02]}  Ne1 {[%clk 0:00:05]} 57. Bc6 {[%clk 0:00:02]}  Re5 {[%clk 0:00:04]} 58. b5 {[%clk 0:00:03]}  g5 {[%clk 0:00:04]} 59. b6 {[%clk 0:00:03]} 1-0


[Site "https://www.chess.com"]

[Event "Titled Tuesday Blitz April 11 Early 2023"]
[White "Grigoriants, Sergey"]
[Black "Timofeev, Artyom"]
[WhiteFideId "4130804"]
[BlackFideId "4140419"]
[WhiteElo "2502"]
[BlackElo "2586"]
[Result "1/2-1/2"]
[Round "09"]
[TimeControl "180+2"]
[Date "2023.04.11"]
[WhiteClock "0:02:03"]
[BlackClock "0:02:21"]

1. d4 {[%clk 0:02:52]}  d5 {[%clk 0:02:59]} 2. c4 {[%clk 0:02:52]}  e6 {[%clk 0:02:59]} 3. Nc3 {[%clk 0:02:52]}  c6 {[%clk 0:02:59]} 4. e3 {[%clk 0:02:49]}  Nf6 {[%clk 0:02:57]} 5. Nf3 {[%clk 0:02:49]}  Nbd7 {[%clk 0:02:57]} 6. Qc2 {[%clk 0:02:49]}  Bd6 {[%clk 0:02:55]} 7. Bd3 {[%clk 0:02:49]}  O-O {[%clk 0:02:54]} 8. O-O {[%clk 0:02:48]}  dxc4 {[%clk 0:02:54]} 9. Bxc4 {[%clk 0:02:49]}  c5 {[%clk 0:02:50]} 10. Rd1 {[%clk 0:02:42]}  a6 {[%clk 0:02:45]} 11. dxc5 {[%clk 0:02:25]}  Bxc5 {[%clk 0:02:43]} 12. Ne4 {[%clk 0:02:21]}  Nxe4 {[%clk 0:02:36]} 13. Qxe4 {[%clk 0:02:22]}  Nf6 {[%clk 0:02:29]} 14. Rxd8 {[%clk 0:02:02]}  Nxe4 {[%clk 0:02:28]} 15. Rxf8+ {[%clk 0:02:02]}  Kxf8 {[%clk 0:02:27]} 16. Bd3 {[%clk 0:02:03]}  Nf6 {[%clk 0:02:24]} 17. Bd2 {[%clk 0:02:03]}  b6 {[%clk 0:02:21]} 1/2-1/2


[Site "https://www.chess.com"]

[Event "Titled Tuesday Blitz April 11 Early 2023"]
[White "Flores, Diego"]
[Black "Terry, Renato"]
[WhiteFideId "108049"]
[BlackFideId "3803457"]
[WhiteElo "2613"]
[BlackElo "2575"]
[Result "0-1"]
[Round "09"]
[TimeControl "180+2"]
[Date "2023.04.11"]
[WhiteClock "0:00:07"]
[BlackClock "0:00:14"]

1. d4 {[%clk 0:03:00]}  e6 {[%clk 0:02:58]} 2. c4 {[%clk 0:03:00]}  Bb4+ {[%clk 0:02:58]} 3. Bd2 {[%clk 0:02:58]}  Qe7 {[%clk 0:02:58]} 4. Nf3 {[%clk 0:02:33]}  Nf6 {[%clk 0:02:58]} 5. g3 {[%clk 0:02:30]}  Nc6 {[%clk 0:02:58]} 6. Bg2 {[%clk 0:02:30]}  Bxd2+ {[%clk 0:02:59]} 7. Nbxd2 {[%clk 0:02:28]}  d6 {[%clk 0:02:58]} 8. O-O {[%clk 0:02:28]}  O-O {[%clk 0:02:59]} 9. e4 {[%clk 0:02:26]}  e5 {[%clk 0:02:59]} 10. d5 {[%clk 0:02:26]}  Nb8 {[%clk 0:03:00]} 11. Ne1 {[%clk 0:02:26]}  a5 {[%clk 0:03:00]} 12. Nd3 {[%clk 0:02:26]}  Na6 {[%clk 0:02:56]} 13. Qe2 {[%clk 0:02:14]}  Bd7 {[%clk 0:02:50]} 14. h3 {[%clk 0:02:12]}  b5 {[%clk 0:02:45]} 15. Rac1 {[%clk 0:02:05]}  bxc4 {[%clk 0:02:41]} 16. Nxc4 {[%clk 0:02:02]}  Bb5 {[%clk 0:02:42]} 17. Qd2 {[%clk 0:01:44]}  a4 {[%clk 0:02:42]} 18. Na3 {[%clk 0:01:33]}  Bxd3 {[%clk 0:02:41]} 19. Qxd3 {[%clk 0:01:34]}  Nc5 {[%clk 0:02:41]} 20. Qe2 {[%clk 0:01:31]}  Rab8 {[%clk 0:02:40]} 21. Nc4 {[%clk 0:01:23]}  Ra8 {[%clk 0:02:24]} 22. Rc3 {[%clk 0:01:21]}  Rfb8 {[%clk 0:02:22]} 23. Kh2 {[%clk 0:01:19]}  Rb4 {[%clk 0:02:22]} 24. Rfc1 {[%clk 0:01:10]}  Rab8 {[%clk 0:02:19]} 25. R1c2 {[%clk 0:01:10]}  Qd7 {[%clk 0:02:12]} 26. f3 {[%clk 0:01:05]}  Qe8 {[%clk 0:01:55]} 27. Na5 {[%clk 0:01:03]}  Qb5 {[%clk 0:01:40]} 28. Nc4 {[%clk 0:00:42]}  Nfd7 {[%clk 0:01:39]} 29. h4 {[%clk 0:00:37]}  f6 {[%clk 0:01:24]} 30. Qf2 {[%clk 0:00:37]}  Nb6 {[%clk 0:01:21]} 31. Na3 {[%clk 0:00:35]}  Qa5 {[%clk 0:01:10]} 32. Bh3 {[%clk 0:00:35]}  Rd4 {[%clk 0:00:56]} 33. h5 {[%clk 0:00:22]}  g6 {[%clk 0:00:56]} 34. Qe3 {[%clk 0:00:20]}  Kg7 {[%clk 0:00:56]} 35. h6+ {[%clk 0:00:20]}  Kf7 {[%clk 0:00:56]} 36. Be6+ {[%clk 0:00:20]}  Ke7 {[%clk 0:00:56]} 37. Nb1 {[%clk 0:00:17]}  Qb5 {[%clk 0:00:44]} 38. Nd2 {[%clk 0:00:17]}  Rb7 {[%clk 0:00:43]} 39. f4 {[%clk 0:00:15]}  Rd3 {[%clk 0:00:42]} 40. Qf2 {[%clk 0:00:15]}  Rxd2 {[%clk 0:00:36]} 41. Qxd2 {[%clk 0:00:13]}  Qb4 {[%clk 0:00:34]} 42. Qe3 {[%clk 0:00:11]}  Nxe6 {[%clk 0:00:25]} 43. dxe6 {[%clk 0:00:11]}  c5 {[%clk 0:00:26]} 44. fxe5 {[%clk 0:00:11]}  fxe5 {[%clk 0:00:26]} 45. Qg5+ {[%clk 0:00:11]}  Kxe6 {[%clk 0:00:26]} 46. Rf3 {[%clk 0:00:12]}  Qxe4 {[%clk 0:00:26]} 47. Qf6+ {[%clk 0:00:07]}  Kd7 {[%clk 0:00:25]} 48. Rd2 {[%clk 0:00:07]}  Nc4 {[%clk 0:00:25]} 49. Rdf2 {[%clk 0:00:06]}  Ne3 {[%clk 0:00:16]} 50. Qf8 {[%clk 0:00:03]}  Ng4+ {[%clk 0:00:14]} 51. Kh3 {[%clk 0:00:04]}  Nxf2+ {[%clk 0:00:15]} 52. Rxf2 {[%clk 0:00:05]}  Qh1+ {[%clk 0:00:14]} 53. Rh2 {[%clk 0:00:05]}  Qe4 {[%clk 0:00:14]} 54. Rd2 {[%clk 0:00:05]}  Qf5+ {[%clk 0:00:13]} 55. Qxf5+ {[%clk 0:00:06]}  gxf5 {[%clk 0:00:14]} 56. Kh4 {[%clk 0:00:06]}  Ke6 {[%clk 0:00:13]} 57. Kg5 {[%clk 0:00:07]}  Rb4 {[%clk 0:00:14]} 0-1


[Site "https://www.chess.com"]

[Event "Titled Tuesday Blitz April 11 Early 2023"]
[White "Goltsev, Dmitry"]
[Black "Kollars, Dmitrij"]
[WhiteFideId "24176710"]
[BlackFideId "12909572"]
[WhiteElo "2336"]
[BlackElo "2584"]
[Result "0-1"]
[Round "09"]
[TimeControl "180+2"]
[Date "2023.04.11"]
[WhiteClock "0:01:12"]
[BlackClock "0:01:09"]

1. e4 {[%clk 0:02:57]}  e5 {[%clk 0:02:59]} 2. Nf3 {[%clk 0:02:58]}  Nc6 {[%clk 0:03:00]} 3. Bb5 {[%clk 0:02:58]}  a6 {[%clk 0:03:00]} 4. Ba4 {[%clk 0:02:59]}  Nf6 {[%clk 0:03:00]} 5. O-O {[%clk 0:02:59]}  Bc5 {[%clk 0:02:58]} 6. Nxe5 {[%clk 0:02:59]}  Nxe5 {[%clk 0:02:56]} 7. d4 {[%clk 0:02:59]}  b5 {[%clk 0:02:54]} 8. Bb3 {[%clk 0:02:59]}  Bxd4 {[%clk 0:02:54]} 9. Qxd4 {[%clk 0:03:00]}  d6 {[%clk 0:02:54]} 10. c3 {[%clk 0:02:59]}  c5 {[%clk 0:02:42]} 11. Qd1 {[%clk 0:02:58]}  Bb7 {[%clk 0:02:33]} 12. f3 {[%clk 0:02:58]}  O-O {[%clk 0:02:32]} 13. Bg5 {[%clk 0:02:56]}  h6 {[%clk 0:02:32]} 14. Bh4 {[%clk 0:02:55]}  Ng6 {[%clk 0:02:25]} 15. Bg3 {[%clk 0:02:53]}  c4 {[%clk 0:02:24]} 16. Bc2 {[%clk 0:02:52]}  d5 {[%clk 0:02:21]} 17. exd5 {[%clk 0:02:49]}  Nxd5 {[%clk 0:02:19]} 18. Bxg6 {[%clk 0:02:47]}  fxg6 {[%clk 0:02:17]} 19. Qc1 {[%clk 0:02:42]}  Qb6+ {[%clk 0:02:10]} 20. Bf2 {[%clk 0:02:41]}  Qc6 {[%clk 0:02:08]} 21. Bg3 {[%clk 0:02:37]}  Rae8 {[%clk 0:01:46]} 22. Nd2 {[%clk 0:02:29]}  Re2 {[%clk 0:01:43]} 23. Ne4 {[%clk 0:02:28]}  Ne3 {[%clk 0:01:30]} 24. Rf2 {[%clk 0:02:25]}  Rxf2 {[%clk 0:01:30]} 25. Bxf2 {[%clk 0:02:26]}  Nxg2 {[%clk 0:01:25]} 26. Kxg2 {[%clk 0:02:01]}  Rxf3 {[%clk 0:01:25]} 27. Qe1 {[%clk 0:01:55]}  Rf4 {[%clk 0:01:21]} 28. Kf1 {[%clk 0:01:30]}  Rxe4 {[%clk 0:01:20]} 29. Qd2 {[%clk 0:01:30]}  Re8 {[%clk 0:01:11]} 30. Bg1 {[%clk 0:01:12]}  Qf3+ {[%clk 0:01:09]} 0-1


[Site "https://www.chess.com"]